bitfinex/quotes_ETHUSD_20250715
["timestamp","ask_amount","ask_price","bid_price","bid_amount"]
[1752608299468,18.58779899,3055.2,3055.1,1e-08]
[1752608299758,18.54688514,3055.2,3055.1,1e-08]
[1752608300053,24.65488514,3055.2,3055.1,1e-08]
[1752608300254,24.65988514,3055.2,3055.1,1e-08]
[1752608300427,24.65888514,3055.2,3055.1,1e-08]
[1752608300625,18.54688514,3055.2,3055.1,1e-08]
[1752608300945,24.65788514,3055.2,3055.1,1e-08]
[1752608301254,54.65788514,3055.2,3055.1,1e-08]
[1752608301411,3.27514492,3053.3,3053.1,0.04]
[1752608301616,12.25717336,3053.2,3053.1,0.04]
[1752608301848,3.27525219,3053.2,3053.1,0.04]
[1752608302045,24.65642555,3053.2,3053.1,0.04]
[1752608302245,15.25717336,3053.2,3053.1,0.04]
[1752608302452,15.25717336,3053.2,3053.1,0.4804]
[1752608302614,12.25717336,3053.2,3053.1,0.4804]
[1752608302813,12.25717336,3053.4,3053.1,0.4804]
[1752608303040,12.25717336,3053.4,3053.2,0.4404]
[1752608303245,12.25717336,3053.7,3053.3,0.1632]
[1752608303484,8.8188294,3054.0,3053.5,3.2749304]
[1752608303656,0.1632,3054.9,3053.9,0.1632]
[1752608303961,8.818831,3054.8,3054.7,3.27364389]
[1752608304283,8.818831,3055.3,3054.8,0.9391]
[1752608304483,8.818831,3055.6,3055.5,3.27278677]
[1752608304785,8.818831,3055.8,3055.7,4.04847256]
[1752608305082,0.04,3055.9,3055.8,3.27246547]
[1752608305292,0.04,3055.9,3055.8,3.71286547]
[1752608305449,0.04,3055.9,3055.8,4.52172714]
[1752608305943,0.04,3055.9,3055.8,10.63272714]
[1752608306885,0.04,3056.9,3055.8,7.36026167]
[1752608307102,0.04,3056.9,3056.8,3.27139492]
[1752608307680,0.04,3056.9,3056.8,3.71179492]
[1752608308389,0.04,3056.9,3056.8,4.41013206]
[1752608308587,7.426032,3056.9,3056.8,4.41013206]
[1752608309269,7.426032,3056.9,3056.8,1.13873714]
[1752608309594,7.426032,3056.9,3056.8,5.20653206]
[1752608309977,0.04,3056.9,3056.8,5.20653206]
[1752608310367,0.04,3056.9,3056.8,11.27853206]
[1752608311392,0.04,3056.9,3056.8,11.82853206]
[1752608311911,1e-08,3056.9,3056.8,11.82853206]
[1752608312081,0.04,3057.9,3057.8,3.27032507]
[1752608312271,0.04,3057.9,3057.8,9.32732507]
[1752608312617,0.04,3057.9,3057.8,1.2474]
[1752608312909,0.04,3057.9,3057.4,0.4404]
[1752608313204,3.31028465,3057.9,3057.4,0.4404]
[1752608313416,3.27045213,3057.7,3057.4,0.4404]
[1752608313586,0.04,3057.9,3057.0,0.4404]
[1752608313787,30.0,3057.8,3056.7,0.807]
[1752608313999,0.0408804,3057.7,3056.7,0.807]
[1752608314207,0.0408804,3057.7,3056.5,0.4404]
[1752608314208,3.27146962,3056.8,3056.5,0.4404]
[1752608314400,3.2712879,3056.9,3056.5,0.4404]
[1752608314631,3.27096689,3057.2,3056.6,0.4404]
[1752608314816,0.0408804,3057.7,3056.6,0.8116019]
[1752608314982,3.27057246,3057.6,3057.4,0.1632]
[1752608315309,3.24407772,3057.9,3057.4,0.1632]
[1752608315499,3.47341927,3057.9,3057.4,0.1632]
[1752608315687,3.47341927,3057.9,3057.5,0.4404]
[1752608315688,0.04,3057.9,3057.5,0.4404]
[1752608315884,0.04,3057.9,3057.7,0.1632]
[1752608316417,0.04,3057.9,3057.8,0.4404]
[1752608316716,0.04,3057.9,3057.8,3.71072507]
[1752608316898,0.04,3057.9,3057.8,0.6036]
[1752608318191,0.04,3057.9,3057.8,3.87392507]
[1752608318755,0.04,3057.9,3057.8,0.6036]
[1752608319611,0.04,3057.9,3057.8,3.87392507]
[1752608319945,0.04,3057.9,3057.8,4.26131758]
[1752608320848,0.04,3058.9,3058.8,3.26925591]
[1752608321006,0.04,3058.9,3058.5,0.808]
[1752608321212,0.04,3058.9,3058.8,3.43245591]
[1752608321851,0.04,3058.9,3058.8,0.6036]
[1752608322212,0.04,3058.9,3058.8,3.87285591]
[1752608322945,0.04,3058.9,3058.8,4.58707772]
[1752608326238,0.04,3058.9,3058.8,10.54307772]
[1752608326753,0.001,3059.2,3059.1,3.2689353]
[1752608327054,0.001,3059.2,3059.1,3.4321353]
[1752608327212,0.001,3059.2,3059.1,4.14694282]
[1752608327415,0.001,3059.2,3059.1,4.59384282]
[1752608327746,0.001,3059.2,3059.1,5.35094282]
[1752608327747,1e-08,3059.2,3059.1,5.35094282]
[1752608327948,0.001,3060.5,3059.3,3.2687216]
[1752608328149,0.001,3060.5,3059.2,0.55]
[1752608328150,0.001,3060.5,3059.5,0.55]
[1752608328331,0.001,3060.5,3060.4,3.26754672]
[1752608328530,0.001,3060.5,3060.4,9.21054672]
[1752608328752,0.001,3060.5,3060.4,5.943]
[1752608328949,0.001,3060.5,3060.4,9.21054672]
[1752608329448,0.001,3060.5,3060.4,9.65744672]
[1752608329755,0.001,3060.5,3060.4,11.27672221]
[1752608330052,0.001,3060.5,3060.4,9.64644672]
[1752608332551,0.001,3060.5,3060.4,10.19644672]
[1752608332858,0.001,3060.5,3060.4,3.71444672]
[1752608333027,0.001,3060.5,3060.4,9.62444672]
[1752608333531,0.001,3060.5,3060.4,3.71444672]
[1752608333732,0.001,3060.5,3060.4,9.61944672]
[1752608334055,0.001,3060.5,3060.4,10.98386676]
[1752608335247,1e-08,3060.5,3060.4,10.98386676]
[1752608335956,1e-08,3060.5,3060.4,5.07886676]
[1752608336160,1e-08,3060.5,3059.9,1.2144]
[1752608336452,1e-08,3060.5,3059.5,0.4469]
[1752608336653,1e-08,3060.5,3059.6,5.887]
[1752608336855,1e-08,3060.5,3060.0,3.2679168]
[1752608337021,3.26744736,3060.5,3060.1,5.889]
[1752608337221,3.26793635,3060.1,3059.5,3.71539605]
[1752608337422,3.26805133,3060.0,3059.4,3.26860525]
[1752608337659,3.26791433,3060.1,3059.5,9.15550305]
[1752608337871,3.26798185,3060.0,3059.9,0.1632]
[1752608338025,0.512147,3060.2,3059.9,5.887]
[1752608338655,3.26792785,3060.1,3059.9,5.887]
[1752608338859,3.2678685,3060.1,3059.9,5.887]
[1752608339018,0.512147,3060.2,3059.9,5.887]
[1752608339218,3.26797385,3060.0,3059.9,5.887]
[1752608339424,3.26797385,3060.0,3059.0,0.4469]
[1752608339425,3.26826583,3059.8,3059.4,5.884]
[1752608339647,3.30893626,3059.9,3059.4,5.884]
[1752608339962,3.78027965,3059.9,3059.4,5.884]
[1752608340133,0.04084967,3060.0,3059.4,5.884]
[1752608340335,6.77986762,3060.3,3059.7,3.2682577]
[1752608340542,3.4713,3060.3,3059.8,5.878]
[1752608340721,3.0,3060.3,3059.8,9.14610985]
[1752608340923,3.0,3060.3,3059.8,5.878]
[1752608340924,0.04084566,3060.3,3059.8,5.878]
[1752608341125,3.26793119,3060.1,3059.8,5.878]
[1752608341322,3.26808692,3059.9,3059.8,5.875]
[1752608341540,0.04084566,3060.3,3059.8,5.875]
[1752608341739,3.26784215,3060.2,3059.8,5.875]
[1752608341960,3.7800175,3060.1,3059.8,5.875]
[1752608342163,3.26808065,3059.9,3059.8,5.875]
[1752608342368,3.26821397,3059.8,3059.7,5.871]
[1752608342540,3.16845271,3059.6,3059.5,5.871]
[1752608342740,3.16845271,3059.6,3059.4,5.867]
[1752608342938,0.4713,3060.2,3059.4,5.867]
[1752608343139,0.8146,3060.4,3059.4,6.3139]
[1752608343342,3.26791711,3060.1,3059.4,9.13559924]
[1752608343573,3.2677997,3060.2,3059.5,3.26850406]
[1752608343892,3.73897045,3060.3,3059.6,5.868]
[1752608344070,3.26787007,3060.1,3059.6,5.868]
[1752608344277,4.08224486,3060.4,3059.6,7.22855041]
[1752608344483,3.26772548,3060.3,3059.7,3.26824791]
[1752608344695,4.08224486,3060.4,3059.7,3.26824791]
[1752608344886,3.26775914,3060.3,3059.7,3.26824791]
[1752608345393,0.8146,3060.4,3059.6,5.868]
[1752608345594,1e-08,3060.5,3059.8,0.4469]
[1752608345783,1e-08,3060.5,3060.2,3.26769686]
[1752608346097,1e-08,3060.5,3060.3,5.852]
[1752608347860,1e-08,3060.5,3060.3,9.11961748]
[1752608348284,1e-08,3060.5,3060.3,5.852]
[1752608348672,1e-08,3060.5,3060.4,3.26754672]
[1752608349493,1e-08,3060.5,3060.4,3.43074672]
[1752608349988,1e-08,3060.5,3060.4,5.13268634]
[1752608355486,1e-08,3060.5,3060.4,3.43074672]
[1752608355689,1e-08,3060.5,3060.4,9.21474672]
[1752608356613,1e-08,3060.5,3060.4,9.67654672]
[1752608357083,1e-08,3060.5,3060.4,3.89254672]
[1752608357406,1e-08,3060.5,3060.4,9.66954672]
[1752608357612,1e-08,3060.5,3060.4,10.96326625]
[1752608359913,1e-08,3060.5,3060.4,11.78676625]
[1752608360085,1e-08,3060.5,3060.4,12.33676625]
[1752608360488,0.8127,3061.8,3061.7,3.26615932]
[1752608360489,0.001,3061.8,3061.7,3.26615932]
[1752608360684,0.001,3061.8,3060.4,1.75551953]
[1752608360886,0.4297,3061.8,3061.1,3.26672948]
[1752608361199,0.4297,3061.8,3061.6,3.26618046]
[1752608361200,0.001,3061.8,3061.6,3.26618046]
[1752608361382,0.001,3061.8,3061.6,5.753]
[1752608362583,0.001,3061.8,3061.7,5.744]
[1752608364278,0.001,3061.8,3061.0,1.2853]
[1752608364279,0.001,3061.8,3061.0,0.8235]
[1752608364502,3.26648017,3061.4,3061.1,5.732]
[1752608364706,4.03045197,3061.3,3061.1,5.732]
[1752608364890,0.4287,3061.2,3061.1,5.732]
[1752608365081,3.6953928,3061.2,3061.1,5.732]
[1752608365282,4.07126209,3061.3,3061.1,5.732]
[1752608365500,3.2666928,3061.2,3061.1,5.732]
[1752608365719,1.1925,3061.3,3061.1,5.732]
[1752608365916,0.7638,3061.3,3061.1,5.732]
[1752608366117,3.26634629,3061.6,3061.1,5.732]
[1752608366302,3.26639223,3061.5,3061.1,5.732]
[1752608366483,3.26630687,3061.6,3061.1,5.732]
[1752608366912,0.04082699,3061.7,3061.1,5.732]
[1752608367116,0.04082699,3061.7,3061.2,3.26664262]
[1752608367316,0.04082699,3061.7,3061.1,8.99876994]
[1752608367521,3.30702932,3061.7,3061.2,3.26667026]
[1752608367711,3.30702932,3061.7,3061.1,8.99875684]
[1752608368014,3.73572932,3061.7,3061.2,3.26667363]
[1752608368221,0.80562565,3061.8,3061.4,3.26640442]
[1752608368385,0.80562565,3061.8,3061.5,5.715]
[1752608368582,0.7648,3061.8,3061.5,8.9813403]
[1752608368782,0.001,3061.8,3061.6,3.266266]
[1752608368985,0.001,3061.8,3061.7,3.26615932]
[1752608370087,0.001,3061.8,3061.6,4.16434305]
[1752608370282,0.001,3061.8,3061.2,3.26659485]
[1752608370520,0.001,3061.8,3061.3,5.707]
[1752608370823,0.001,3061.8,3061.7,0.1632]
[1752608371027,0.001,3061.8,3061.7,5.8652]
[1752608371716,0.001,3061.8,3061.7,9.13135932]
[1752608372696,4.62536161,3062.5,3061.9,3.2658799]
[1752608372931,3.26545979,3062.4,3061.9,0.1632]
[1752608373441,0.7771,3062.5,3061.9,3.2659327]
[1752608373643,0.7771,3062.5,3062.1,3.42886557]
[1752608373845,0.7771,3062.5,3062.2,5.683]
[1752608374435,0.7771,3062.5,3062.3,0.1632]
[1752608376443,6.30584087,3062.8,3062.3,0.1632]
[1752608376907,0.04081232,3062.8,3062.4,3.26535969]
[1752608377106,0.9803,3062.9,3062.5,5.668]
[1752608377641,0.9803,3062.9,3062.5,8.93325037]
[1752608378037,0.8171,3062.9,3062.5,8.93325037]
[1752608378238,0.8171,3062.9,3062.5,5.8312]
[1752608378445,0.8171,3062.9,3062.5,9.0964538]
[1752608378654,0.04,3062.9,3062.5,5.8312]
[1752608378952,3.30498079,3062.9,3062.5,5.8312]
[1752608379169,3.2651995,3062.6,3061.8,0.7946]
[1752608379474,0.754,3060.8,3060.6,0.1632]
[1752608379775,0.754,3061.2,3060.2,3.72953752]
[1752608379919,3.26681068,3061.1,3060.9,0.1632]
[1752608380120,3.26690623,3061.0,3060.9,0.1632]
[1752608381744,3.26776027,3060.2,3060.1,0.04]
[1752608381968,3.26776027,3060.2,3060.1,0.2032]
[1752608382368,0.1632,3060.7,3060.1,0.2032]
[1752608382533,3.26764127,3060.4,3060.1,0.2032]
[1752608382735,0.20404033,3060.7,3060.1,0.2032]
[1752608382977,3.26776027,3060.2,3060.1,0.2032]
[1752608383290,6.26776027,3060.2,3060.1,0.2032]
[1752608383445,0.58571527,3060.7,3060.1,0.2032]
[1752608383629,3.26766068,3060.3,3060.1,0.2032]
[1752608383829,3.2675861,3060.4,3060.1,0.2032]
[1752608384161,3.26748274,3060.5,3060.1,0.2032]
[1752608384361,0.04084299,3060.5,3060.1,0.2032]
[1752608384580,6.26776027,3060.2,3060.1,0.04]
[1752608384870,7.49130727,3060.2,3060.1,0.04]
[1752608385073,7.02176027,3060.2,3060.1,0.04]
[1752608385645,7.45246027,3060.2,3060.1,0.04]
[1752608388461,13.10046027,3060.2,3060.1,0.04]
[1752608389071,7.02176027,3060.2,3060.1,0.04]
[1752608389231,0.08320577,3060.8,3060.1,0.04]
[1752608389232,0.7662,3060.8,3060.1,0.04]
[1752608389434,0.80703366,3061.2,3060.2,5.64]
[1752608389764,3.26776027,3060.2,3060.1,1e-08]
[1752608389965,4.03396027,3060.2,3060.1,1e-08]
[1752608390164,37.50550727,3060.2,3060.1,1e-08]
[1752608390347,37.46466027,3060.2,3060.1,1e-08]
[1752608391080,7.03396027,3060.2,3060.1,1e-08]
[1752608391291,4.03396027,3060.2,3060.1,1e-08]
[1752608391935,37.50550727,3060.2,3060.1,1e-08]
[1752608392136,6.26840109,3059.6,3059.5,0.002]
[1752608392441,6.43160109,3059.6,3059.5,0.002]
[1752608394141,4.13727468,3059.6,3059.5,0.002]
[1752608394302,4.13727468,3059.6,3059.1,0.2032]
[1752608394303,14.52142284,3059.2,3059.1,0.04]
[1752608395000,0.8269,3058.9,3058.1,0.04]
[1752608395201,3.26968349,3058.4,3058.1,0.04]
[1752608400330,3.31055453,3058.4,3058.1,0.04]
[1752608402719,3.0,3058.5,3058.1,0.04]
[1752608402923,0.8112,3059.3,3058.3,0.4567]
[1752608403106,3.26948021,3058.6,3058.3,0.4567]
[1752608403326,3.26948021,3058.6,3058.4,0.4547]
[1752608403542,3.0,3058.5,3058.3,0.002]
[1752608403743,3.0,3058.7,3058.5,0.4547]
[1752608403909,6.26937326,3058.7,3058.5,0.4547]
[1752608404115,3.26946969,3058.6,3058.5,0.4547]
[1752608404347,3.0,3058.6,3058.5,0.4547]
[1752608404644,3.0,3058.6,3058.5,0.6179]
[1752608407045,6.26946969,3058.6,3058.5,0.6179]
[1752608407422,3.0,3058.6,3058.5,0.6179]
[1752608407630,6.26946969,3058.6,3058.5,0.1632]
[1752608408042,6.26968349,3058.4,3058.3,0.002]
[1752608409813,0.4307,3058.8,3058.3,0.002]
[1752608409814,8.25259439,3058.9,3058.3,0.4567]
[1752608410013,3.26968349,3058.4,3058.3,0.002]
[1752608410260,11.52227788,3058.4,3058.3,0.002]
[1752608414535,3.26960843,3058.5,3058.3,0.002]
[1752608415548,8.58,3058.6,3058.3,0.002]
[1752608415722,3.26964467,3058.5,3058.3,0.002]
[1752608416047,3.26964467,3058.5,3058.3,0.4573]
[1752608416418,3.0,3058.6,3058.3,0.4573]
[1752608416656,3.0,3058.7,3058.4,0.4553]
[1752608416965,3.0,3058.7,3058.5,0.4553]
[1752608417133,3.0,3058.7,3058.3,0.002]
[1752608417338,3.0,3058.7,3058.6,0.4553]
[1752608418233,6.2693628,3058.7,3058.6,0.4553]
[1752608419854,6.2693628,3058.7,3058.6,0.6185]
[1752608421229,3.26968349,3058.4,3058.3,0.002]
[1752608421427,3.26968349,3058.4,3058.3,0.1652]
[1752608424830,6.26960809,3058.5,3058.3,0.1652]
[1752608425751,3.0,3058.5,3058.4,0.4553]
[1752608425957,6.26957658,3058.5,3058.4,0.4553]
[1752608426561,6.26957658,3058.5,3058.3,0.1652]
[1752608426769,3.0,3058.5,3058.4,0.4553]
[1752608427063,3.26890021,3059.2,3058.6,3.2694549]
[1752608427266,1.00370044,3059.4,3058.7,5.9813]
[1752608427452,0.30381175,3059.7,3059.1,0.1632]
[1752608427793,0.17082909,3059.8,3059.7,3.26829427]
[1752608428081,0.001,3060.1,3059.7,3.26829427]
[1752608428082,0.001,3060.1,3060.0,3.26797385]
[1752608428230,0.001,3060.1,3060.0,4.05257385]
[1752608428429,0.04,3060.9,3060.6,0.7846]
[1752608428763,0.04,3060.9,3060.7,5.525]
[1752608428928,0.04,3060.9,3060.8,0.1632]
[1752608429131,0.04,3060.9,3060.8,0.6185]
[1752608429772,0.04,3060.9,3060.8,9.4066197]
[1752608429944,0.04,3060.9,3060.8,10.42574167]
[1752608430257,0.04,3060.9,3060.8,0.1632]
[1752608430459,3.30701297,3060.9,3060.8,0.1632]
[1752608430931,0.04,3060.9,3060.8,0.1632]
[1752608431643,0.04,3060.9,3060.8,3.8856197]
[1752608431840,0.04,3060.9,3060.8,0.6185]
[1752608432277,0.04,3060.9,3060.8,6.1275]
[1752608433134,0.04,3060.9,3060.8,0.6185]
[1752608433340,0.04,3060.9,3060.8,6.1225]
[1752608433568,0.04,3060.9,3060.8,6.1205]
[1752608435037,0.04,3060.9,3060.8,9.3876197]
[1752608435237,0.04,3060.9,3060.8,6.1205]
[1752608436243,0.04,3060.9,3060.8,9.3876197]
[1752608436647,0.04,3060.9,3060.8,6.1205]
[1752608437051,0.04,3060.9,3060.8,9.3876197]
[1752608437274,0.04,3060.9,3060.8,11.14019212]
[1752608438576,0.04,3060.9,3060.8,11.69019212]
[1752608439860,0.04,3060.9,3060.8,5.47499212]
[1752608440077,0.04,3060.9,3060.8,10.0072197]
[1752608440662,0.04,3060.9,3060.8,0.8138]
[1752608440978,0.04,3060.9,3060.8,10.0072197]
[1752608442238,0.041,3060.9,3060.8,10.0072197]
[1752608442475,0.041,3060.9,3060.8,4.5362197]
[1752608442641,0.041,3060.9,3060.8,10.0062197]
[1752608442842,0.041,3060.9,3060.8,11.33356427]
[1752608443856,0.041,3061.9,3061.0,0.55]
[1752608444059,0.041,3061.9,3061.6,3.26620333]
[1752608444277,0.041,3061.9,3061.7,8.72914226]
[1752608444879,0.041,3061.9,3061.8,3.72135264]
[1752608446358,0.041,3061.9,3061.8,5.456]
[1752608446547,0.041,3061.9,3061.8,9.15005264]
[1752608446903,0.001,3062.2,3062.1,3.26573266]
[1752608447209,0.040803,3063.5,3062.2,0.7632]
[1752608447350,0.001,3063.8,3062.3,6.62682]
[1752608447547,0.001,3063.8,3063.0,0.7632]
[1752608447747,0.001,3063.8,3062.7,3.26502897]
[1752608447748,3.26441965,3063.4,3062.7,3.26502897]
[1752608447955,3.26441965,3063.4,3062.8,5.469]
[1752608448155,3.26448244,3063.3,3062.8,5.469]
[1752608448607,3.26438026,3063.4,3062.8,8.73396256]
[1752608448800,0.4471,3063.7,3062.8,8.73396256]
[1752608448801,3.26426927,3063.5,3062.9,3.26487075]
[1752608449002,3.71115125,3063.7,3062.8,5.897]
[1752608449003,3.26435328,3063.4,3063.0,5.468]
[1752608449205,0.001,3063.8,3063.0,0.91609513]
[1752608449380,0.001,3063.8,3063.1,9.16066651]
[1752608449905,0.001,3063.8,3063.1,9.32386651]
[1752608451005,0.001,3063.8,3063.1,10.65686651]
[1752608452606,0.001,3063.8,3063.1,5.18886651]
[1752608452928,0.001,3063.8,3063.1,10.09286651]
[1752608453224,0.001,3063.8,3063.1,12.53740811]
[1752608453724,3.26431481,3063.5,3063.1,0.9462]
[1752608453903,3.26555993,3063.2,3063.1,0.1632]
[1752608454108,3.26555993,3063.2,3063.1,5.6122]
[1752608454305,0.7684,3063.1,3062.0,0.8151]
[1752608454505,3.0,3062.8,3062.5,0.1632]
[1752608454815,3.26551938,3062.3,3062.2,5.6112]
[1752608455193,3.264997,3062.8,3062.2,8.87679817]
[1752608455393,0.7684,3062.9,3062.7,0.1632]
[1752608455726,3.2651995,3062.6,3062.5,5.449]
[1752608456184,0.7684,3062.9,3062.5,5.877]
[1752608456385,3.26467395,3063.1,3062.8,0.1632]
[1752608456639,3.26559345,3063.2,3062.8,5.6122]
[1752608456815,3.26466836,3063.1,3062.8,5.6122]
[1752608456991,3.0,3063.0,3062.8,5.6122]
[1752608457347,3.0,3063.1,3062.8,5.6122]
[1752608457563,0.001,3063.2,3062.8,6.01022]
[1752608457830,0.001,3063.2,3063.0,3.26477305]
[1752608458015,0.001,3063.2,3063.1,5.444]
[1752608458196,0.001,3063.2,3061.1,0.04]
[1752608458197,3.26636464,3061.6,3061.1,0.04]
[1752608458385,3.26573266,3062.1,3061.1,3.30677006]
[1752608458386,3.26596562,3061.9,3061.1,3.30677006]
[1752608458589,3.26625185,3061.7,3061.1,0.04]
[1752608458816,3.26637207,3061.6,3061.1,0.04]
[1752608458994,3.2664781,3061.5,3061.2,5.486]
[1752608459205,3.0,3061.4,3061.2,5.486]
[1752608459594,3.0,3061.4,3061.3,5.484]
[1752608459916,0.7784,3062.2,3061.3,6.0364]
[1752608460217,3.0,3061.8,3061.3,6.4644]
[1752608460385,0.4471,3061.8,3061.3,5.484]
[1752608460584,3.26631062,3061.6,3061.3,5.484]
[1752608460991,3.0,3061.4,3061.1,0.04]
[1752608461846,3.26646837,3061.5,3061.2,5.479]
[1752608461984,0.7536,3061.8,3061.2,8.74566601]
[1752608462180,3.0,3061.8,3061.2,9.62421879]
[1752608462386,3.26598974,3061.9,3061.2,9.62421879]
[1752608462597,3.0,3062.0,3061.2,6.3575666]
[1752608462831,0.79442032,3062.2,3061.2,9.62418088]
[1752608463033,3.26573266,3062.1,3061.3,3.26651462]
[1752608463207,3.26611911,3061.8,3061.2,9.62422601]
[1752608463528,6.2666928,3061.2,3061.1,0.04]
[1752608463691,14.50521141,3061.2,3061.1,0.04]
[1752608463886,14.95231141,3061.2,3061.1,0.04]
[1752608466197,6.2666928,3061.2,3061.1,0.04]
[1752608467318,7.54667872,3061.2,3061.1,5.51]
[1752608467520,6.2666928,3061.2,3061.1,5.6732]
[1752608473206,0.8157,3062.1,3061.1,6.1012]
[1752608473406,3.26629763,3061.6,3061.5,0.1632]
[1752608473642,6.26629763,3061.6,3061.5,0.1632]
[1752608473861,0.1632,3062.0,3061.5,0.1632]
[1752608474059,0.1632,3062.0,3061.5,0.5912]
[1752608474209,3.26582231,3062.1,3061.9,0.1632]
[1752608474415,3.0,3062.0,3061.9,0.1632]
[1752608474763,3.26575363,3062.1,3061.9,0.1632]
[1752608475038,8.7161232,3062.7,3061.9,0.1632]
[1752608475039,1.1563643,3063.4,3062.0,0.756]
[1752608475263,0.001,3063.2,3062.1,5.451]
[1752608475418,3.26596147,3062.9,3062.2,4.76284529]
[1752608475618,3.0,3062.8,3062.3,3.72101415]
[1752608475860,0.001,3062.9,3062.4,0.4555]
[1752608476226,0.001,3062.9,3062.5,0.4555]
[1752608476551,3.2666928,3061.2,3061.1,0.04]
[1752608476767,6.2666928,3061.2,3061.1,0.04]
[1752608477626,6.2666928,3061.2,3061.1,5.593]
[1752608478325,6.2666928,3061.2,3061.1,0.04]
[1752608478525,6.2666928,3061.2,3061.1,5.591]
[1752608479054,7.54667863,3061.2,3061.1,0.04]
[1752608479241,8.00237863,3061.2,3061.1,0.04]
[1752608480156,8.81467863,3061.2,3061.1,0.04]
[1752608480738,6.26679951,3061.1,3061.0,1e-08]
[1752608480927,37.31519245,3061.1,3061.0,1e-08]
[1752608481127,7.27435746,3061.1,3061.0,1e-08]
[1752608481546,6.81865746,3061.1,3061.0,1e-08]
[1752608481954,6.26679951,3061.1,3061.0,1e-08]
[1752608485162,6.26679951,3061.1,3061.0,0.16320001]
[1752608487451,6.3076345,3061.1,3061.0,0.16320001]
[1752608487667,6.9265345,3061.1,3061.0,1e-08]
[1752608487977,7.44932224,3061.1,3061.0,1e-08]
[1752608488995,14.17182224,3061.1,3061.0,1e-08]
[1752608489353,6.26765349,3060.3,3060.2,0.1632]
[1752608489601,6.26765349,3060.3,3060.1,0.04]
[1752608489602,6.26776027,3060.2,3060.1,0.04]
[1752608489774,6.30860727,3060.2,3060.1,0.04]
[1752608490090,7.90339795,3060.2,3060.1,0.04]
[1752608490250,7.86255095,3060.2,3060.1,0.04]
[1752608490442,3.26786706,3060.1,3060.0,1e-08]
[1752608490670,6.76441539,3060.1,3060.0,1e-08]
[1752608490872,7.78373812,3060.1,3060.0,1e-08]
[1752608491176,7.74288979,3060.1,3060.0,1e-08]
[1752608492099,8.67088979,3060.1,3060.0,1e-08]
[1752608493402,8.21518979,3060.1,3060.0,1e-08]
[1752608493561,3.0,3059.3,3058.5,0.4555]
[1752608493761,20.02820741,3059.2,3058.5,0.1632]
[1752608493958,20.44304706,3059.2,3058.5,0.1632]
[1752608494278,6.26946969,3058.6,3058.5,0.1632]
[1752608494480,12.50906969,3058.6,3058.5,0.1632]
[1752608494647,3.26989732,3058.2,3058.1,0.04]
[1752608494850,14.50841593,3058.2,3058.1,0.04]
[1752608495160,3.27066087,3057.5,3057.1,0.04]
[1752608495363,3.2703956,3057.8,3057.5,0.1632]
[1752608495594,0.7576,3058.6,3057.6,0.4555]
[1752608495775,0.1632,3059.1,3058.5,0.1632]
[1752608495979,3.26850792,3059.5,3058.6,0.4555]
[1752608496284,0.04085501,3059.6,3059.0,0.1632]
[1752608496585,0.79845367,3059.7,3059.4,0.1632]
[1752608496766,3.26850792,3059.5,3059.4,0.1632]
[1752608497183,6.26850792,3059.5,3059.4,0.1632]
[1752608500087,3.0,3059.5,3059.4,0.1632]
[1752608501486,3.26883194,3059.2,3058.8,0.7717]
[1752608501676,3.2687869,3059.3,3059.1,0.1632]
[1752608501994,3.26938063,3058.7,3058.6,0.1632]
[1752608502354,8.23851861,3059.1,3058.6,0.1632]
[1752608502355,0.04086302,3059.0,3058.6,0.1632]
[1752608502556,5.458,3059.6,3058.7,0.4555]
[1752608502762,3.0,3059.3,3058.9,0.1632]
[1752608502958,0.1632,3059.8,3058.8,0.7717]
[1752608502959,0.1632,3059.8,3059.3,0.1632]
[1752608503286,3.26827367,3059.8,3059.3,0.6187]
[1752608503483,3.26830185,3059.7,3059.5,0.1632]
[1752608503688,3.30808624,3059.9,3059.5,0.1632]
[1752608503689,6.26820404,3059.8,3059.5,0.1632]
[1752608504063,3.26836325,3059.7,3059.5,0.1632]
[1752608504398,3.26822791,3059.8,3059.5,0.1632]
[1752608504688,3.26832879,3059.7,3059.5,0.1632]
[1752608505065,3.04,3059.9,3059.5,0.1632]
[1752608505597,3.26819518,3059.8,3059.5,0.1632]
[1752608505793,3.26830294,3059.7,3059.5,0.1632]
[1752608506092,3.26822442,3059.8,3059.5,0.1632]
[1752608506296,6.3080896,3059.9,3059.5,0.1632]
[1752608506463,3.26835128,3059.7,3059.5,0.1632]
[1752608507483,3.26831143,3059.7,3059.5,0.1632]
[1752608508095,3.04,3059.9,3059.5,0.1632]
[1752608509283,3.04,3059.9,3059.5,0.1652]
[1752608509486,0.04,3059.9,3059.5,0.5949]
[1752608510500,0.04,3059.9,3059.8,0.1632]
[1752608511481,0.04,3059.9,3059.8,0.5929]
[1752608514604,0.04,3059.9,3059.8,9.29508746]
[1752608515077,0.04,3059.9,3059.8,0.1632]
[1752608515702,3.30808065,3059.9,3059.8,0.1632]
[1752608515903,3.26840109,3059.6,3059.5,0.002]
[1752608516111,6.26840109,3059.6,3059.5,0.002]
[1752608516409,6.3092561,3059.6,3059.5,0.002]
[1752608516774,6.7415561,3059.6,3059.5,0.002]
[1752608517199,6.7415561,3059.6,3058.8,0.7681]
[1752608517200,4.02315501,3059.6,3058.1,0.4297]
[1752608517399,3.0,3058.8,3058.0,0.7565]
[1752608517601,3.26969938,3058.4,3058.0,0.7565]
[1752608517805,3.26978099,3058.4,3058.0,0.7565]
[1752608518005,0.04086703,3058.7,3058.1,0.4297]
[1752608518209,3.0,3058.6,3058.1,0.4297]